[Event "45th FIDE Olympiad 2024"]
[Site "Budapest"]
[Date "2024.09.11"]
[Round "1"]
[White "Maharaj, Yash Krishen"]
[Black "Fitzsimons, David"]
[Result "0-1"]
[ECO "B90"]
[WhiteElo "1847"]
[BlackElo "2315"]
[Annotator "TA"]
[PlyCount "54"]
[EventDate "2024.09.05"]
[EventType "team-tourn"]
[EventCountry "HUN"]
[SourceTitle "playchess.com"]
[Source "ChessBase"]
[SourceQuality "1"]
[WhiteTeam "Fiji"]
[BlackTeam "Ireland"]
[WhiteTeamCountry "FIJ"]
[BlackTeamCountry "IRL"]
[TimeControl "40/5400+30:1800+30"]

{[%evp 18,54,26,25,26,0,0,0,24,-13,-7,-27,-25,0,-25,-14,0,18,14,0,0,-354,-344,-341,-340,-428,-432,-903,-878,-929,-929,-1101,-1101,-1389,-1359,-1327,-1062,-29997,-464]} 1. e4 c5 2. Nf3 {[%cal Bg1f3,Bf3d4,Bd4b3][%mdl 32]} d6 3. d4 cxd4 4. Nxd4 Nf6 5. Nc3 a6 6. f3 e5 7. Nb3 Be6 8. Be3 h5 9. Qd2 Nbd7 10. O-O-O b5 11. a3 Rc8 12. Kb1 Be7 {The position is equal.} 13. Be2 Nb6 14. Rhg1 Qc7 15. Bxb6 Qxb6 16. f4 b4 17. axb4 Qxb4 18. Bxa6 {[#] Hoping for fxe5.} Rb8 19. Bb5+ $2 {[%mdl 8192]} Rxb5 $19 20. Nxb5 Qxb5 21. Rge1 O-O 22. h3 (22. Qa5 $142 Qc4 23. f5) 22... Ra8 23. Qd3 Qa4 {[#] ...Bc4 is the strong threat.} 24. Kc1 d5 25. exd5 Nxd5 {...Nb4 would now be deadly.} 26. Re4 {White is weak on the dark squares} Bb4 27. Kb1 {Wards off Qa1+} Qa2+ {Weighted Error Value: White=1.22/Black=0.31.  Loses game:     	White=1     	---        Mistake:       	White=1     	---        Inaccurate:     	White=2     	Black=1      OK:         	White=3     	Black=3      Best:        	---       	Black=1} 0-1

[Event "45th FIDE Olympiad 2024"]
[Site "Budapest"]
[Date "2024.09.11"]
[Round "1.1"]
[White "Sanchez Alvarez, Roberto Carlos"]
[Black "So, Wesley"]
[Result "1/2-1/2"]
[ECO "E56"]
[WhiteElo "2376"]
[BlackElo "2752"]
[Annotator "TA"]
[PlyCount "81"]
[EventDate "2024.09.05"]
[EventType "team-tourn"]
[EventCountry "HUN"]
[SourceTitle "playchess.com"]
[Source "ChessBase"]
[SourceQuality "1"]
[WhiteTeam "Panama"]
[BlackTeam "United States of America"]
[WhiteTeamCountry "PAN"]
[TimeControl "40/5400+30:1800+30"]

{[%evp 23,81,-6,25,-14,-9,-12,0,0,-8,0,0,-26,0,0,8,-10,-8,-20,0,-10,-2,-11,-8,-21,-16,-9,-11,-7,-7,-7,-6,-8,0,0,0,0,0,0,0,0,0,0,0,0,0,0,0,0,0,0,0,0,0,0,0,0,0,0,0,0]} 1. d4 {[%emt 0:00:04]} Nf6 {[%emt 0:00:07]} 2. c4 {[%emt 0:00:10]} e6 {[%emt 0:00:05]} 3. Nc3 {[%emt 0:00:13]} Bb4 {[%emt 0:00:07]} 4. e3 {[%emt 0:00:10]} O-O {[%emt 0:00:35]} 5. Bd3 {[%emt 0:00:31]} d5 {[%emt 0:00:23]} 6. Nf3 {[%emt 0:00:53]} dxc4 {[%emt 0:00:26]} 7. Bxc4 {[%emt 0:00:10]} c5 {[%emt 0:00:04]} 8. O-O {[%emt 0:00:30]} Nc6 {[%emt 0:01:19]} 9. a3 {[%emt 0:00:36]} Ba5 {[%emt 0:00:53]} 10. Qd3 {[%emt 0:00:12]} a6 {[%emt 0:06:16]} 11. Rd1 {[%emt 0:08:05]} b5 {[%emt 0:08:36]} 12. Ba2 {[%emt 0:00:26]} Bb7 {[%emt 0:02:07]} 13. Qe2 {[%emt 0:10:35]} (13. dxc5 $5 Bxc3 14. Qc2 $11 (14. bxc3 Qxd3 15. Rxd3 Ne4 $11)) 13... cxd4 {[%emt 0:20:03]} 14. exd4 {[%emt 0:14:50]} Bxc3 {[%emt 0:05:01]} 15. bxc3 {[%emt 0:00:15]} Ne7 {[%emt 0:00:18]} 16. c4 {[%emt 0:08:42]} bxc4 {[%emt 0:11:55]} 17. Bxc4 {[%emt 0:00:28]} Ng6 {[%emt 0:00:18]} 18. Ne5 {[%emt 0:17:41] The position is equal.} Ne4 {[%emt 0:07:03]} 19. Nxg6 {[%emt 0:01:07]} hxg6 {[%emt 0:02:48]} 20. Bb2 {[%emt 0:03:09][%cal Bc1b2,Bb2c3,Bc3b4,Bb4d6][%mdl 32] Dodges Nc3} Re8 {[%emt 0:02:06]} 21. Rac1 {[%emt 0:08:20]} Qb6 {[%emt 0:05:10]} 22. f3 {[%emt 0:11:25]} Nd6 {[%emt 0:04:38]} 23. Kh1 {[%emt 0:00:48]} Rab8 {[%emt 0:02:37] [#] And now ...Bd5 would win.} 24. Bc3 {[%emt 0:01:24]} Nxc4 {[%emt 0:01:21]} 25. Qxc4 {[%emt 0:00:03]} Rec8 {[%emt 0:01:08]} 26. Qe2 {[%emt 0:06:00] White is weak on the light squares} Bd5 {[%emt 0:00:58]} 27. Qd2 {[%emt 0:01:39]} Qb3 {[%emt 0:10:59]} 28. Bb4 {[%emt 0:00:22]} a5 {[%emt 0:00:49]} 29. Bd6 {[%emt 0:01:59]} Ra8 {[%emt 0:01:22]} 30. h3 {[%emt 0:00:47]} f6 {[%emt 0:01:54]} 31. Kh2 {[%emt 0:01:44]} g5 {[%emt 0:00:28]} 32. Rxc8+ {[%emt 0:00:34]} Rxc8 {[%emt 0:00:01]} 33. Rc1 {[%emt 0:00:09][%cal Bd1c1,Bc1c3,Bc3c8][%mdl 32]} Rd8 {[%emt 0:02:01]} 34. Bc7 {[%emt 0:00:47]} Ra8 {[%emt 0:00:22]} 35. Bd6 {[%emt 0:00:32]} Qb6 {[%emt 0:02:31]} 36. Bc7 {[%emt 0:00:41]} Qb7 {[%emt 0:00:08]} 37. Rc3 {[%emt 0:01:18]} a4 {[%emt 0:01:01]} 38. Qc1 {[%emt 0:00:28]} Rc8 {[%emt 0:00:33]} 39. Bd6 {[%emt 0:00:59]} Bc6 {[%emt 0:00:53]} 40. Bg3 {[%emt 0:00:49]} Bd7 {[%emt 0:00:30]} 41. Rxc8+ {[%emt 0:30:26] An even fight not without its subleties.   Weighted Error Value: White=0.04 (flawless) /Black=0.04 (flawless) .  Inaccurate:     	White=1     	Black=1      OK:         	White=14    	Black=12     Best:        	White=1     	---} 1/2-1/2

[Event "45th FIDE Olympiad 2024"]
[Site "Budapest"]
[Date "2024.09.11"]
[Round "1.1"]
[White "Khalema, Sechaba"]
[Black "Mohammad Fahad, Rahman"]
[Result "0-1"]
[ECO "D38"]
[WhiteElo "1779"]
[BlackElo "2419"]
[Annotator "TA"]
[PlyCount "40"]
[EventDate "2024.09.05"]
[EventType "team-tourn"]
[EventCountry "HUN"]
[SourceTitle "playchess.com"]
[Source "ChessBase"]
[SourceQuality "1"]
[WhiteTeam "Lesotho"]
[BlackTeam "Bangladesh"]
[WhiteTeamCountry "LES"]
[BlackTeamCountry "BAN"]
[TimeControl "40/5400+30:1800+30"]

{[%evp 10,40,36,33,36,0,7,-41,-9,-77,-68,-69,-69,-98,-91,-114,-112,-131,-106,-172,-181,-186,-174,-364,-343,-875,-876,-981,-992,-864,-873,-865,-853]} 1. d4 Nf6 2. c4 e6 3. Nf3 d5 4. Nc3 Bb4 5. cxd5 exd5 6. Bg5 h6 7. Bf4 Ne4 8. Qb3 (8. Rc1 $11 {is more appropriate.}) 8... c5 {Black is slightly better.} 9. Bxb8 (9. Nd2 $11 {keeps the balance.}) 9... Rxb8 $17 10. dxc5 Qa5 ({Don't play} 10... Bxc5 $6 11. Nxe4 (11. Nxd5 $2 Bxf2+ 12. Kd1 O-O $19) 11... dxe4 12. Qb5+ Bd7 13. Qxc5 $16) 11. Rc1 Nxc5 {[%cal Be4c5,Bc5a4,Ba4c3][%mdl 32]} 12. Qc2 Qxa2 {...0-0 is the strong threat. Black is more active.} 13. e3 O-O 14. Nd2 {Dodges Nb3} (14. Be2 $17 {might work better.}) 14... Bxc3 $19 15. Qxc3 Na4 {[%csl LRb2,LRc3]} 16. Qc7 {[#]} (16. Qd4 {was worth a try.} Qxb2 17. Qxb2 Nxb2 18. Ra1) 16... Bf5 ({But not} 16... Qxb2 17. Rb1 Qa3 18. Bb5 $19 (18. Qxb8 $2 {too greedy.} Nc3 $19)) 17. Qa5 $2 (17. Qe5 Rbc8 (17... Qxb2 $2 18. Qxb2 Nxb2 19. Nb3 $19) 18. Rxc8 Qa1+ (18... Bxc8 $2 19. Be2 $19) (18... Rxc8 $2 19. Qxf5 Rc1+ 20. Ke2 $19) 19. Ke2 Bxc8 20. Qxd5) 17... Qxb2 {Black is clearly winning.} 18. Rd1 Bc2 19. Be2 Bxd1 20. Bxd1 Nc3 {White got outplayed after the opening.   Weighted Error Value: White=0.72/Black=0.06 (flawless) .  Mistake:       	White=5     	---        Inaccurate:     	White=2     	Black=1      OK:         	White=2     	Black=8} 0-1

[Event "45th FIDE Olympiad 2024"]
[Site "Budapest"]
[Date "2024.09.11"]
[Round "1.2"]
[White "Dominguez Perez, Leinier"]
[Black "Delgado Rosas, Alex Antonio"]
[Result "1-0"]
[ECO "C42"]
[WhiteElo "2748"]
[BlackElo "2157"]
[Annotator "TA"]
[PlyCount "65"]
[EventDate "2024.09.05"]
[EventType "team-tourn"]
[EventCountry "HUN"]
[SourceTitle "playchess.com"]
[Source "ChessBase"]
[SourceQuality "1"]
[WhiteTeam "United States of America"]
[BlackTeam "Panama"]
[BlackTeamCountry "PAN"]
[TimeControl "40/5400+30:1800+30"]

{[%evp 17,65,15,18,16,60,56,63,60,53,45,50,59,54,58,87,83,80,89,79,77,95,95,154,152,164,170,237,234,243,231,237,249,241,260,219,231,366,291,443,455,401,376,364,282,393,376,733,712,1220,1154]} 1. e4 {[%emt 0:00:07]} e5 {[%emt 0:00:12]} 2. Nf3 {[%emt 0:00:08]} Nf6 {[%emt 0:00:10]} 3. Nxe5 {[%emt 0:01:30]} d6 {[%emt 0:00:12]} 4. Nf3 {[%emt 0:00:08]} Nxe4 {[%emt 0:00:09]} 5. d4 {[%emt 0:00:52]} d5 {[%emt 0:00:09]} 6. Bd3 {[%emt 0:00:09]} Bd6 {[%emt 0:00:10]} 7. O-O {[%emt 0:00:45]} O-O {[%emt 0:00:14]} 8. c4 {[%emt 0:00:11]} c6 {[%emt 0:00:27]} 9. Re1 {[%emt 0:00:42]} Bf5 {[%emt 0:00:30]} 10. Ng5 {[%emt 0:02:05][%cal Rd3e4]} Nd7 {[%emt 0:24:47]} 11. cxd5 {[%emt 0:01:50]} cxd5 {[%emt 0:00:35]} 12. Qf3 $1 {[%emt 0:00:21] White is slightly better.} Bg6 {[%emt 0:28:03]} 13. Nxe4 {[%emt 0:03:34]} dxe4 {[%emt 0:00:06]} 14. Bxe4 {[%emt 0:00:06]} Re8 {[%emt 0:02:00]} 15. Nc3 {[%emt 0:04:08]} Qb6 {[%emt 0:12:59]} 16. Rd1 {[%emt 0:05:16]} Nf6 {[%emt 0:03:12] [#]} 17. Bxg6 {[%emt 0:00:17]} (17. Bxb7 $2 {is the wrong capture.} Rab8 18. Bd5 (18. Bc6 $2 Bh5 $19) 18... Bh5 $19) 17... hxg6 {[%emt 0:00:07]} 18. g3 {[%emt 0:21:26]} Rad8 {[%emt 0:02:06]} 19. Bg5 {[%emt 0:04:01]} Bb4 {[%emt 0:08:06]} (19... Be7 $142) 20. Bxf6 $16 {[%emt 0:08:18]} Qxf6 {[%emt 0:00:43]} 21. Qxb7 {[%emt 0:00:13]} Rb8 {[%emt 0:06:31]} (21... Ba5 {keeps fighting.}) 22. Qxa7 $18 {[%emt 0:03:01]} Bxc3 {[%emt 0:00:48]} 23. bxc3 {[%emt 0:00:03]} Rb2 {[%emt 0:01:55]} 24. Rf1 {[%emt 0:05:15]} Ree2 {[%emt 0:04:00][%cal Re2f2]} 25. Qa8+ {[%emt 0:01:45]} Kh7 {[%emt 0:00:02]} 26. Qg2 {[%emt 0:00:12]} g5 {[%emt 0:02:13]} (26... Rbc2 $142 27. Rae1 Rxa2 28. Rxe2 Rxe2 29. Qh3+ Kg8) 27. a4 {[%emt 0:02:35][%cal Ba2a4,Ba4a5,Ba5a6][%mdl 32]} g6 {[%emt 0:01:12]} (27... Qf5 $142 28. a5 f6) 28. a5 {[%emt 0:00:49] And now a6 would win.} Qa6 {[%emt 0:00:11]} 29. Qf3 {[%emt 0:02:56]} Kg7 {[%emt 0:00:14]} 30. Rae1 {[%emt 0:01:22][%cal Ba1e1,Be1e7,Be7f7][%mdl 32]} Red2 {[%emt 0:02:11]} 31. Re7 {[%emt 0:02:47]} Qc4 {[%emt 0:00:11] [#]} (31... Qf6 32. Qxf6+ Kxf6) 32. a6 $1 {[%emt 0:01:39] a7 is the strong threat.} Rd3 {[%emt 0:01:27] [#]} (32... g4 33. Qf4) 33. Rxf7+ $3 {[%emt 0:00:20][%mdl 512] Black did not feel at home in the position after the opening.   Weighted Error Value: White=0.06 (flawless) /Black=0.40.  Mistake:       	---       	Black=5      Inaccurate:     	---       	Black=4      OK:         	White=13    	Black=2      Best:        	White=2     	Black=1      Strong:       	White=1     	---        Brilliant:      	White=1     	---} 1-0

[Event "45th FIDE Olympiad 2024"]
[Site "Budapest"]
[Date "2024.09.11"]
[Round "1.2"]
[White "Manon, Reja Neer"]
[Black "Thabang, Mphane"]
[Result "1-0"]
[ECO "B05"]
[WhiteElo "2417"]
[BlackElo "1799"]
[Annotator "TA"]
[PlyCount "63"]
[EventDate "2024.09.05"]
[EventType "team-tourn"]
[EventCountry "HUN"]
[SourceTitle "playchess.com"]
[Source "ChessBase"]
[SourceQuality "1"]
[WhiteTeam "Bangladesh"]
[BlackTeam "Lesotho"]
[WhiteTeamCountry "BAN"]
[BlackTeamCountry "LES"]
[TimeControl "40/5400+30:1800+30"]

{[%evp 14,63,84,19,29,0,8,8,0,12,0,-79,35,24,25,10,37,8,14,21,0,0,29,18,20,-10,25,19,75,-35,-35,-71,0,0,69,36,49,6,41,39,43,41,43,45,41,44,148,175,728,698,708,669]} 1. e4 {[%cal Be2e4,Be4e5][%mdl 32]} Nf6 2. e5 Nd5 3. d4 d6 4. Nf3 Bg4 5. Be2 Nc6 6. c4 Nb6 7. exd6 cxd6 8. b3 (8. d5 $16 Bxf3 9. Bxf3) 8... g6 9. Bb2 Bg7 10. Qd2 {[#] And now d5 would win.} d5 {The position is equal.} 11. c5 Nd7 12. h3 (12. O-O $11) 12... Bf5 (12... Bxf3 $17 13. Bxf3 e6) 13. O-O O-O 14. b4 {[%cal Bb3b4,Bb4b5][%mdl 32]} a6 {[%cal Ba7a6,Ba6a5][%mdl 32]} 15. a4 a5 16. b5 {g4 would now be deadly.} Nb4 {[%cal Oe7e5]} 17. Na3 Nf6 18. Qe3 Ne4 {Strongly threatening ...Nxc5.} 19. Ne5 Rc8 20. g4 Be6 {[#]} (20... f6 $11 {keeps the balance.} 21. Nd3 Bd7) 21. f4 (21. f3 $1 $16 {[%cal Rf3e4]} Bxe5 22. dxe5 (22. fxe4 Bg7 $16) 22... Nxc5 23. Bd4) 21... f5 22. g5 Bd7 (22... Bxe5 $17 23. fxe5 f4 24. Rxf4 Rxf4 (24... Nxg5 $2 25. Rxf8+ Qxf8 26. Qxg5 $18) 25. Qxf4 Qd7) 23. h4 $11 Be8 (23... e6 $11) 24. Rab1 h6 25. Nd3 hxg5 26. hxg5 Nxd3 27. Bxd3 Bd7 28. Kg2 Kf7 29. Rh1 e5 30. Bxe4 $16 dxe4 (30... fxe4 31. dxe5 (31. fxe5 Kg8 $14) 31... Qe7) 31. Nc4 $18 ({Inferior is} 31. fxe5 f4 32. Qxf4+ (32. Qxe4 Qxg5+ 33. Kf2 Qg3+ 34. Ke2 Bf5 $19) 32... Ke8 $11) 31... Be6 {aiming for ...exf4.} 32. Nd6+ {Weighted Error Value: White=0.25 (precise) /Black=0.31.  Mistake:       	White=2     	Black=6      Inaccurate:     	White=6     	Black=4      OK:         	White=7     	Black=5      Best:        	White=1     	Black=1} (32. Nxe5+ Bxe5 33. d5 (33. dxe5 Qd3 $16) (33. fxe5 Kg7 $15) 33... Qxd5 (33... Bxb2 $2 34. dxe6+ Kg8 35. Rbd1 $18) 34. Bxe5 Qxc5 35. Rh7+ Ke8 36. Qxc5 Rxc5 37. Rxb7 e3 $18) 1-0

[Event "45th FIDE Olympiad 2024"]
[Site "Budapest"]
[Date "2024.09.11"]
[Round "1.3"]
[White "Mendez Machado, Andre"]
[Black "Aronian, Levon"]
[Result "0-1"]
[ECO "B30"]
[WhiteElo "2122"]
[BlackElo "2729"]
[Annotator "TA"]
[PlyCount "90"]
[EventDate "2024.09.05"]
[EventType "team-tourn"]
[EventCountry "HUN"]
[SourceTitle "playchess.com"]
[Source "ChessBase"]
[SourceQuality "1"]
[WhiteTeam "Panama"]
[BlackTeam "United States of America"]
[WhiteTeamCountry "PAN"]
[TimeControl "40/5400+30:1800+30"]

{[%evp 9,90,27,43,19,17,12,14,4,37,30,34,23,54,48,74,75,343,334,375,372,367,372,509,243,257,256,269,265,283,220,512,230,298,282,345,322,334,304,306,317,317,125,121,0,0,0,0,0,0,0,4,4,27,0,4,0,0,-8,-1,-8,-7,-17,-16,-21,0,-2,0,-8,0,0,6,-143,-145,-150,-88,-29958,-29968,-29968,-29971,-29993,-29994,-29995,-29996]} 1. e4 {[%emt 0:00:01][%cal Be2e4,Be4e5][%mdl 32]} c5 {[%emt 0:00:06]} 2. Nf3 {[%emt 0:00:03]} Nc6 {[%emt 0:00:28]} 3. Bb5 {[%emt 0:00:08]} Nf6 {[%emt 0:00:31][%cal Bg8f6,Bf6h5,Bh5g7,Bg7f5][%mdl 32]} 4. Nc3 {[%emt 0:00:59]} g6 {[%emt 0:00:08]} 5. e5 {[%emt 0:04:12]} Nh5 {[%emt 0:00:20]} 6. Bxc6 {[%emt 0:02:46]} dxc6 {[%emt 0:02:30]} 7. O-O {[%emt 0:00:23]} Ng7 {[%emt 0:01:33]} 8. d3 {[%emt 0:06:49] The position is equal.} h6 {[%emt 0:01:31]} 9. Ne4 {[%emt 0:17:20]} b6 {[%emt 0:00:39]} 10. Re1 {[%emt 0:01:38]} Nf5 {[%emt 0:00:55]} 11. c3 {[%emt 0:05:49]} g5 {[%emt 0:05:48]} 12. Qa4 {[%emt 0:07:20]} Qc7 $2 {[%emt 0:02:46][%mdl 8192]} (12... Bb7 $16) 13. g4 $18 {[%emt 0:02:03]} Qb7 {[%emt 0:17:02]} 14. gxf5 {[%emt 0:00:38]} Bxf5 {[%emt 0:00:03]} 15. d4 {[%emt 0:06:12]} Bg4 {[%emt 0:03:09]} 16. Nfd2 {[%emt 0:02:08]} (16. d5 $142 Bxf3 17. dxc6) 16... cxd4 {[%emt 0:01:50]} 17. Nb3 {[%emt 0:06:00]} O-O-O {[%emt 0:04:35][%cal Be8c8,Bc8b8,Bb8a8,Ba8b7][%mdl 32]} 18. cxd4 {[%emt 0:01:20] Strongly threatening Re3.} Kb8 {[%emt 0:02:52]} 19. Bd2 {[%emt 0:04:59]} Bd7 $2 {[%emt 0:08:01]} (19... Be6 20. Rac1 Rc8) 20. Qa3 {[%emt 0:03:32]} (20. Nbc5 $142 bxc5 21. Ba5 (21. Nxc5 Qb5 $18) (21. dxc5 Be6 $11)) 20... Bf5 {[%emt 0:08:14]} 21. Rac1 {[%emt 0:10:12]} e6 {[%emt 0:00:06]} 22. Qa4 {[%emt 0:01:14]} Rc8 {[%emt 0:00:08]} 23. Rc3 {[%emt 0:03:53][%cal Ob3a5] Hoping for Na5!} Ka8 {[%emt 0:00:35]} 24. Ng3 {[%emt 0:02:57]} Bh3 {[%emt 0:00:06]} 25. Nf1 $2 {[%emt 0:02:52]} (25. Rce3 $18 {is more deadly.}) 25... b5 $16 {[%emt 0:03:18] [#]} 26. Na5 $1 {[%emt 0:03:56]} bxa4 $11 {[%emt 0:00:15]} 27. Nxb7 {[%emt 0:00:02]} Bxf1 {[%emt 0:00:07]} 28. Kxf1 {[%emt 0:01:08]} ({Don't play} 28. Nd6 $6 Bxd6 29. exd6 Ba6 $14) 28... Kxb7 {[%emt 0:00:06]} 29. Rc4 {[%emt 0:00:19] Repels Bb4} Be7 {[%emt 0:02:48]} 30. Rxa4 {[%emt 0:01:40]} Rhd8 {[%emt 0:02:46]} 31. Be3 {[%emt 0:00:38][%cal Od4d5] Threatens to win with d5!} c5 {[%emt 0:03:54]} 32. dxc5 {[%emt 0:02:32]} Bxc5 {[%emt 0:00:14]} 33. Re4 {[%emt 0:00:39]} Bb6 {[%emt 0:02:25]} 34. Bxb6 {[%emt 0:00:31]} axb6 {[%emt 0:00:07][%mdl 4096] Endgame. KRR-KRR} 35. R1e2 {[%emt 0:00:32] Repels Rc2} Rd1+ {[%emt 0:00:52]} 36. Kg2 {[%emt 0:00:21]} h5 {[%emt 0:00:28]} 37. f4 {[%emt 0:00:34]} g4 {[%emt 0:03:04]} 38. Kg3 {[%emt 0:00:26]} Rg8 {[%emt 0:01:39]} 39. R4e3 {[%emt 0:00:34]} Rf1 {[%emt 0:04:05]} 40. Rf2 {[%emt 0:00:37] [#]} (40. Rd2 $11) 40... h4+ $1 $17 {[%emt 0:00:42][%mdl 512]} 41. Kg2 {[%emt 0:30:05]} Rd1 {[%emt 0:30:11]} (41... Rxf2+ $142 42. Kxf2 Ra8) 42. Ree2 $2 {[%emt 0:00:00][%mdl 8192]} (42. f5 $17) 42... h3+ {[%emt 0:00:00] Black mates.} 43. Kg3 {[%emt 0:00:00]} Rg1+ {[%emt 0:00:00]} 44. Kh4 {[%emt 0:00:00]} g3 {[%emt 0:00:00]} 45. hxg3 {[%emt 0:00:00]} R1xg3 {[%emt 0:00:00] Never resign too early!   Weighted Error Value: White=0.56/Black=0.36.  Loses game:     	White=1     	Black=1      Missed win:     	White=1     	---        Mistake:       	White=4     	Black=2      Inaccurate:     	White=1     	Black=4      OK:         	White=16    	Black=7      Best:        	White=2     	Black=3      Brilliant:      	---       	Black=1} 0-1

[Event "45th FIDE Olympiad 2024"]
[Site "Budapest"]
[Date "2024.09.11"]
[Round "1.3"]
[White "Tsephe, Lebajoa"]
[Black "Hossain, Enamul"]
[Result "0-1"]
[ECO "B14"]
[WhiteElo "1900"]
[BlackElo "2354"]
[Annotator "ChessBase"]
[PlyCount "91"]
[EventDate "2024.09.05"]
[EventType "team-tourn"]
[EventCountry "HUN"]
[SourceTitle "playchess.com"]
[Source "ChessBase"]
[SourceQuality "1"]
[WhiteTeam "Lesotho"]
[BlackTeam "Bangladesh"]
[WhiteTeamCountry "LES"]
[BlackTeamCountry "BAN"]
[TimeControl "40/5400+30:1800+30"]

1. d4 d5 2. c4 c5 3. e3 cxd4 4. exd4 Nf6 5. Nc3 g6 6. Qb3 Bg7 7. cxd5 O-O 8. Be2 Nbd7 9. Bf3 Nb6 10. a4 a5 11. Nge2 Bg4 12. Bxg4 Nxg4 13. O-O Nf6 14. Nf4 Qd6 15. Nd3 Nbxd5 16. Nb5 Qd8 17. Bf4 Nxf4 18. Nxf4 Bh6 19. Qf3 Rc8 20. Nd3 Qd5 21. Qe2 Rfe8 22. f4 Bg7 23. Rfe1 e6 24. Ne5 Red8 25. Qd2 Bf8 26. Qd3 Bb4 27. Rec1 Qe4 28. Qxe4 Nxe4 29. g3 Nd2 30. Rd1 Rc2 31. Nd3 Nf3+ 32. Kf1 Nxh2+ 33. Kg1 Nf3+ 34. Kf1 Nd2+ 35. Kg1 Ne4 36. g4 h5 37. gxh5 gxh5 38. Rac1 Re2 39. Nxb4 axb4 40. Re1 Ng3 41. Rb1 Rc2 42. Re3 h4 43. Rb3 Kh7 44. Re1 Rg8 45. Re5 h3 46. Rf5 0-1

[Event "45th FIDE Olympiad 2024"]
[Site "Budapest"]
[Date "2024.09.11"]
[Round "1.4"]
[White "Robson, Ray"]
[Black "Baules Rodriguez, Jorge Luis"]
[Result "1-0"]
[ECO "B72"]
[WhiteElo "2700"]
[BlackElo "2271"]
[Annotator "TA"]
[PlyCount "63"]
[EventDate "2024.09.05"]
[EventType "team-tourn"]
[EventCountry "HUN"]
[SourceTitle "playchess.com"]
[Source "ChessBase"]
[SourceQuality "1"]
[WhiteTeam "United States of America"]
[BlackTeam "Panama"]
[BlackTeamCountry "PAN"]
[TimeControl "40/5400+30:1800+30"]

{[%evp 27,63,79,78,84,76,83,93,99,111,76,83,91,117,121,163,166,428,366,445,445,444,442,337,322,407,227,797,777,743,816,818,799,4210,3359,29988,29989,29992,29991]} 1. e4 {[%emt 0:00:03]} c5 {[%emt 0:00:07]} 2. Nf3 {[%emt 0:00:08]} d6 {[%emt 0:00:10]} 3. d4 {[%emt 0:00:10]} cxd4 {[%emt 0:00:08]} 4. Nxd4 {[%emt 0:00:07]} Nf6 {[%emt 0:00:08]} 5. Nc3 {[%emt 0:00:07]} g6 {[%emt 0:00:06]} 6. Be3 {[%emt 0:00:21]} Bg7 {[%emt 0:00:10]} 7. f3 {[%emt 0:00:17]} O-O {[%emt 0:00:10]} 8. Qd2 {[%emt 0:00:14]} Nc6 {[%emt 0:00:09]} 9. Bc4 {[%emt 0:00:23]} Bd7 {[%emt 0:00:09]} 10. O-O-O {[%emt 0:00:22]} Rc8 {[%emt 0:00:47]} 11. Be2 {[%emt 0:00:28]} Nxd4 {[%emt 0:06:39]} 12. Bxd4 {[%emt 0:00:11]} Qa5 {[%emt 0:16:03]} 13. Kb1 {[%emt 0:02:20]} Rfe8 {[%emt 0:07:09]} 14. g4 {[%emt 0:18:16]} Be6 {[%emt 0:09:53][%cal Oc8c3] [#] ...Rxc3! would now be deadly.} 15. a3 {[%emt 0:01:47]} a6 {[%emt 0:05:33]} 16. h4 {[%emt 0:21:51][%cal Bh2h4,Bh4h5][%mdl 32]} b5 {[%emt 0:17:32]} 17. h5 {[%emt 0:07:30] White is better.} b4 {[%emt 0:12:40]} 18. axb4 {[%emt 0:02:01]} Qxb4 {[%emt 0:00:08]} 19. Nd5 {[%emt 0:02:43]} (19. Bxa6 Ra8 20. Bb5 Reb8 $19) 19... Qa4 {[%emt 0:02:17]} 20. b3 {[%emt 0:03:36] Really sharp! Active counter play!} Qa3 {[%emt 0:02:10]} 21. hxg6 {[%emt 0:17:11]} hxg6 $2 {[%emt 0:06:09]} (21... fxg6 22. Nxf6+ Bxf6) 22. g5 $18 {[%emt 0:08:42]} Nh5 {[%emt 0:12:12]} 23. Bxg7 {[%emt 0:01:38]} Kxg7 {[%emt 0:00:41]} 24. f4 {[%emt 0:01:08][%cal Bf3f4,Bf4f5][%mdl 32]} Bxd5 {[%emt 0:00:45]} 25. exd5 {[%emt 0:00:22]} Rh8 {[%emt 0:00:31]} (25... Ng3 26. Qd4+ f6 27. gxf6+ Kf7 28. Rh7+ Kg8 29. Rg7+ (29. Rxe7 Rxe7 30. fxe7 Nxe2 $18) 29... Kh8 30. f7) 26. Bg4 {[%emt 0:03:10]} ({Not} 26. Qd4+ Kg8 $14) (26. f5 $142 Qc5 27. fxg6 (27. Bxa6 Ra8 $14) 27... fxg6 28. Bc4 (28. Bxa6 Ra8 $18)) 26... Rcd8 $2 {[%emt 0:00:33]} (26... Rc4 27. Bxh5 (27. bxc4 $2 {gets mated.} Rb8+) 27... gxh5) 27. Qd4+ {[%emt 0:04:12] Black is weak on the light squares} Kg8 {[%emt 0:00:07]} 28. f5 {[%emt 0:00:45] [#] Intending fxg6 and mate.} Qc5 {[%emt 0:00:29]} 29. Qb2 {[%emt 0:00:31]} Rh7 {[%emt 0:00:53]} 30. fxg6 {[%emt 0:00:38]} fxg6 {[%emt 0:00:02]} 31. Be6+ {[%emt 0:00:20]} Kf8 {[%emt 0:00:04]} 32. Rdf1+ {[%emt 0:00:31] White took control after the opening.   Weighted Error Value: White=0.25 (precise) /Black=0.81.  Mistake:       	White=1     	Black=2      Inaccurate:     	White=1     	Black=1      OK:         	White=5     	Black=3      Best:        	White=2     	---} 1-0